bitfinex/quotes_BTCUSD_20241107
["timestamp","ask_amount","ask_price","bid_price","bid_amount"]
[1730943720936,2.27835986,75751.0,75750.0,0.26689]
[1730943721143,2.41060263,75751.0,75750.0,0.26689]
[1730943721611,2.41260263,75751.0,75750.0,0.26689]
[1730943721830,2.41060263,75751.0,75750.0,0.26689]
[1730943722078,2.41258402,75751.0,75750.0,0.26689]
[1730943722300,2.28234125,75751.0,75750.0,0.26689]
[1730943722789,2.44235225,75751.0,75750.0,0.26689]
[1730943723027,2.44235225,75751.0,75735.0,0.0203367]
[1730943723028,0.77148092,75736.0,75735.0,0.0203367]
[1730943723257,0.94484078,75736.0,75735.0,0.0203367]
[1730943723478,1.07887778,75736.0,75735.0,0.0203367]
[1730943723691,1.29302055,75736.0,75735.0,0.0203367]
[1730943723899,2.79302055,75736.0,75735.0,0.2844167]
[1730943724319,2.27835986,75736.0,75735.0,0.2844167]
[1730943725270,2.28035986,75736.0,75735.0,0.2844167]
[1730943725930,2.28035986,75736.0,75723.0,0.0774]
[1730943725931,0.1,75735.0,75723.0,0.0774]
[1730943726141,0.1,75729.0,75723.0,0.0774]
[1730943726368,0.13224102,75728.0,75723.0,0.0774]
[1730943726576,0.13224102,75728.0,75722.0,0.001492]
[1730943727040,0.1978931,75727.0,75723.0,0.26411]
[1730943727244,0.13224102,75726.0,75723.0,0.26411]
[1730943727898,1.5,75725.0,75723.0,0.26411]
[1730943728122,0.13224102,75724.0,75723.0,0.26411]
[1730943728795,1.63224102,75724.0,75723.0,0.26411]
[1730943732029,0.13224102,75724.0,75723.0,0.26411]
[1730943732517,1.63224102,75724.0,75723.0,0.26411]
[1730943734737,1.73224102,75724.0,75723.0,0.26411]
[1730943735393,1.73224102,75724.0,75723.0,0.265782]
[1730943735815,1.75580739,75724.0,75723.0,0.265782]
[1730943736473,1.83842836,75724.0,75723.0,0.265782]
[1730943736689,1.75580739,75724.0,75723.0,0.265782]
[1730943737103,2.25580739,75724.0,75723.0,0.265782]
[1730943740733,0.1,75723.0,75722.0,0.001492]
[1730943740974,0.23224102,75723.0,75722.0,0.001492]
[1730943741465,0.66736795,75723.0,75722.0,0.001492]
[1730943741704,0.1,75681.0,75672.0,0.1978931]
[1730943741949,0.25,75709.0,75676.0,0.1978931]
[1730943741950,0.5,75677.0,75676.0,0.1978931]
[1730943742181,0.1,75676.0,75668.0,0.1978931]
[1730943742399,0.1,75676.0,75656.0,0.1978931]
[1730943742631,1.5,75669.0,75660.0,0.02232298]
[1730943742858,1.5,75669.0,75657.0,0.2078931]
[1730943743086,1.5,75669.0,75661.0,0.005]
[1730943743327,1.5,75669.0,75662.0,0.005]
[1730943743527,1.5,75669.0,75660.0,0.01]
[1730943743769,0.1978931,75668.0,75660.0,0.01]
[1730943743986,1.5,75669.0,75662.0,0.005]
[1730943744409,0.1978931,75668.0,75662.0,0.005]
[1730943745286,1.5,75669.0,75661.0,0.01]
[1730943746295,0.005,75677.0,75661.0,0.005]
[1730943746473,0.1978931,75670.0,75659.0,0.18681762]
[1730943746667,0.13224102,75669.0,75659.0,0.18681762]
[1730943746879,0.13224102,75669.0,75659.0,0.0203367]
[1730943747287,1.5,75667.0,75659.0,0.0203367]
[1730943747488,1.5,75667.0,75659.0,0.0253367]
[1730943747756,1.5,75667.0,75659.0,0.0303367]
[1730943748116,1.5,75667.0,75660.0,0.398162]
[1730943749299,1.5,75667.0,75661.0,0.01]
[1730943749520,0.1978931,75675.0,75661.0,0.01]
[1730943749727,0.1978931,75675.0,75662.0,0.4015]
[1730943749913,1.5,75674.0,75662.0,0.4015]
[1730943750147,1.5,75674.0,75668.0,0.005]
[1730943750316,0.1978931,75684.0,75673.0,0.01]
[1730943750493,0.1978931,75676.0,75674.0,0.0821]
[1730943750873,0.1978931,75684.0,75674.0,0.47854]
[1730943751415,1.5,75683.0,75674.0,0.47854]
[1730943753137,1.5,75683.0,75679.0,0.01]
[1730943753349,0.1978931,75692.0,75683.0,0.01]
[1730943753576,0.1978931,75684.0,75683.0,0.01]
[1730943753799,1.5,75691.0,75684.0,0.1984869]
[1730943757875,1.5,75691.0,75689.0,0.01]
[1730943758124,0.1,75707.0,75689.0,0.01]
[1730943758125,0.1978931,75700.0,75691.0,0.005]
[1730943758281,0.1978931,75700.0,75691.0,0.01471662]
[1730943758486,0.1978931,75700.0,75686.0,0.002]
[1730943758487,1.5,75699.0,75692.0,0.60394662]
[1730943758917,1.5,75699.0,75693.0,0.00415733]
[1730943759120,1.5,75699.0,75692.0,0.59423]
[1730943759361,1.5,75699.0,75694.0,0.59422]
[1730943759577,1.5,75699.0,75695.0,0.00416253]
[1730943759776,1.5,75699.0,75696.0,0.59421]
[1730943760420,1.500836,75699.0,75696.0,0.59421]
[1730943760734,0.1978931,75697.0,75696.0,0.59421]
[1730943760938,0.13224102,75697.0,75696.0,0.59421]
[1730943761343,0.23724102,75697.0,75696.0,0.59421]
[1730943763758,0.42792951,75697.0,75696.0,0.59421]
[1730943764403,1.92792951,75697.0,75696.0,0.59421]
[1730943764621,1.76144859,75697.0,75696.0,0.59421]
[1730943765052,1.92792951,75697.0,75696.0,0.59421]
[1730943765321,1.92992951,75697.0,75696.0,0.59421]
[1730943765521,1.93579842,75697.0,75696.0,0.59421]
[1730943765729,2.06790342,75697.0,75696.0,0.59421]
[1730943765953,2.13693652,75697.0,75696.0,0.59421]
[1730943766386,2.13493652,75697.0,75696.0,0.59421]
[1730943766885,2.00283152,75697.0,75696.0,0.59421]
[1730943767091,2.09390342,75697.0,75696.0,0.59421]
[1730943767300,2.267187,75697.0,75696.0,0.59421]
[1730943767518,2.269187,75697.0,75696.0,0.59421]
[1730943768435,2.13694423,75697.0,75696.0,0.59421]
[1730943769460,2.00483923,75697.0,75696.0,0.59421]
[1730943769940,2.13694423,75697.0,75696.0,0.59421]
[1730943770800,2.13494423,75697.0,75696.0,0.59421]
[1730943771011,2.13694423,75697.0,75696.0,0.59421]
[1730943771238,2.269187,75697.0,75696.0,0.59421]
[1730943771622,2.17013712,75697.0,75696.0,0.5141945]
[1730943771989,2.17013712,75697.0,75674.0,0.1978931]
[1730943771990,0.5,75677.0,75674.0,0.1978931]
[1730943772194,0.13224102,75676.0,75674.0,0.1978931]
[1730943772439,0.1380492,75676.0,75669.0,0.001672]
[1730943772886,1.5,75675.0,75670.0,0.39645]
[1730943773126,0.13224102,75674.0,75670.0,0.39645]
[1730943773785,1.5,75673.0,75670.0,0.39645]
[1730943774009,0.13224102,75672.0,75670.0,0.39645]
[1730943774239,0.105,75671.0,75670.0,0.39645]
[1730943774485,0.40372194,75671.0,75670.0,0.39645]
[1730943774719,1.90372194,75671.0,75670.0,0.37722724]
[1730943774927,1.73724102,75671.0,75670.0,0.37722724]
[1730943776013,1.74110593,75671.0,75670.0,0.37722724]
[1730943778854,2.24110593,75671.0,75670.0,0.37722724]
[1730943779050,1.74110593,75671.0,75670.0,0.37722724]
[1730943780175,1.73724102,75671.0,75670.0,0.37722724]
[1730943780386,1.73224102,75671.0,75670.0,0.37722724]
[1730943781016,1.63224102,75671.0,75670.0,0.37722724]
[1730943781236,1.5,75671.0,75670.0,0.37722724]
[1730943782350,0.005,75689.0,75671.0,0.005]
[1730943782571,0.1978931,75677.0,75672.0,0.00264257]
[1730943782789,0.13224102,75687.0,75672.0,0.41831257]
[1730943782992,1.5,75676.0,75672.0,0.41567]
[1730943785853,0.29310009,75675.0,75672.0,0.41567]
[1730943786065,1.5,75676.0,75672.0,0.41567]
[1730943788087,0.13224102,75675.0,75672.0,0.41567]
[1730943788516,1.5,75674.0,75672.0,0.41567]
[1730943788728,0.13224102,75673.0,75672.0,0.41567]
[1730943789394,1.63224102,75673.0,75672.0,0.41567]
[1730943790942,1.72416315,75673.0,75672.0,0.41567]
[1730943791150,1.82916315,75673.0,75672.0,0.41567]
[1730943791421,0.005,75672.0,75671.0,0.001672]
[1730943791650,0.43513412,75672.0,75671.0,0.001672]
[1730943791919,0.51063412,75672.0,75671.0,0.001672]
[1730943792149,0.31274102,75672.0,75671.0,0.001672]
[1730943792355,1.81274102,75672.0,75671.0,0.001672]
[1730943793642,1.95189002,75672.0,75671.0,0.001672]
[1730943794097,1.97489002,75672.0,75671.0,0.001672]
[1730943794341,1.98489002,75672.0,75671.0,0.001672]
[1730943794571,1.98489002,75672.0,75634.0,0.1231]
[1730943794572,0.5,75650.0,75636.0,0.1978931]
[1730943794783,0.5,75638.0,75635.0,0.1978931]
[1730943795020,0.1,75635.0,75619.0,0.1978931]
[1730943795246,0.5,75621.0,75619.0,0.1978931]
[1730943795468,0.5,75621.0,75603.0,0.2749931]
[1730943795469,0.13224102,75620.0,75603.0,0.2749931]
[1730943795914,0.105,75618.0,75600.0,0.0011]
[1730943796128,0.23724102,75618.0,75600.0,0.0011]
[1730943796339,1.73724102,75618.0,75600.0,0.0011]
[1730943797445,0.5,75603.0,75600.0,0.0011]
[1730943797682,0.13224102,75602.0,75600.0,0.0011]
[1730943797913,0.105,75601.0,75600.0,0.0011]
[1730943798132,2.39381214,75601.0,75600.0,0.0011]
[1730943798336,0.02,75596.0,75595.0,0.00110001]
[1730943798577,0.63724102,75596.0,75595.0,0.00110001]
[1730943798811,0.73724102,75596.0,75595.0,0.00110001]
[1730943801283,0.73924102,75596.0,75595.0,0.00110001]
[1730943801551,2.23724102,75596.0,75595.0,0.00110001]
[1730943801979,1.73724102,75596.0,75595.0,0.00110001]
[1730943802198,2.23724102,75596.0,75595.0,0.00110001]
[1730943804136,2.23724102,75596.0,75595.0,0.00573001]
[1730943804999,2.36948379,75596.0,75595.0,0.00573001]
[1730943805208,2.24224102,75596.0,75595.0,0.00573001]
[1730943805656,2.26524102,75596.0,75595.0,0.00573001]
[1730943805870,2.24224102,75596.0,75595.0,0.00573001]
[1730943806636,2.23724102,75596.0,75595.0,0.00573001]
[1730943809494,2.23724102,75596.0,75570.0,0.37437402]
[1730943809721,0.23224102,75595.0,75570.0,0.37437402]
[1730943809927,0.005,75590.0,75570.0,0.37437402]
[1730943810130,0.23724102,75590.0,75570.0,0.37437402]
[1730943811207,0.23724102,75590.0,75570.0,0.17648092]
[1730943811420,0.23224102,75590.0,75577.0,0.16648092]
[1730943811660,0.005,75595.0,75585.0,0.16648092]
[1730943811661,0.1,75595.0,75585.0,0.16648092]
[1730943811888,0.1,75593.0,75585.0,0.16648092]
[1730943812116,0.13724102,75594.0,75581.0,0.005]
[1730943812117,0.1,75591.0,75581.0,0.005]
[1730943812753,0.005,75590.0,75581.0,0.005]
[1730943812935,0.23724102,75590.0,75577.0,0.16648092]
[1730943813184,0.23724102,75590.0,75583.0,0.0778]
[1730943813867,0.23724102,75590.0,75574.0,0.0778]
[1730943814073,0.73724102,75590.0,75574.0,0.0778]
[1730943814507,0.73724102,75590.0,75566.0,0.01]
[1730943815190,2.23724102,75590.0,75566.0,0.01]
[1730943817292,2.23724102,75590.0,75560.0,0.1978931]
[1730943817293,2.39753302,75590.0,75560.0,0.1978931]
[1730943817498,2.52977579,75590.0,75560.0,0.1978931]
[1730943817700,2.53177579,75590.0,75560.0,0.1978931]
[1730943818582,2.39748379,75590.0,75560.0,0.1978931]
[1730943819032,2.52977579,75590.0,75560.0,0.1978931]
[1730943819244,2.52977579,75590.0,75589.0,0.00167]
[1730943819458,2.52977579,75590.0,75554.0,0.0158705]
[1730943819459,0.254301,75585.0,75584.0,0.018676]
[1730943819699,0.254301,75585.0,75561.0,0.1978931]
[1730943819700,0.5,75571.0,75561.0,0.1978931]
[1730943819934,0.005,75568.0,75561.0,0.1978931]
[1730943820159,1.5,75562.0,75554.0,0.01351734]
[1730943820843,1.5,75562.0,75557.0,0.16648092]
[1730943821087,1.5,75562.0,75559.0,0.005]
[1730943821314,0.02455741,75584.0,75559.0,0.005]
[1730943821315,0.1,75578.0,75565.0,0.005]
[1730943821538,0.1978931,75566.0,75565.0,0.005]
[1730943821796,0.13224102,75577.0,75565.0,0.005]
[1730943822023,0.1978931,75571.0,75566.0,0.16648092]
[1730943822455,0.005,75577.0,75570.0,0.005]
[1730943822701,1.6978931,75579.0,75570.0,0.005]
[1730943823370,1.7028931,75579.0,75570.0,0.005]
[1730943823579,1.6978931,75579.0,75570.0,0.005]
[1730943824374,0.1,75578.0,75570.0,0.005]
[1730943824825,0.13224102,75577.0,75566.0,0.005]
[1730943825689,0.13224102,75577.0,75562.0,0.16648092]
[1730943825690,0.1978931,75578.0,75576.0,0.17148092]
[1730943826093,1.5,75577.0,75576.0,0.17148092]
[1730943827397,1.5,75577.0,75576.0,0.17648092]
[1730943827604,0.1978931,75591.0,75587.0,0.005]
[1730943827818,0.1978931,75591.0,75577.0,0.005]
[1730943828027,0.005,75593.0,75588.0,0.39689]
[1730943828028,0.13224102,75590.0,75588.0,0.39689]
[1730943828268,0.1978931,75589.0,75588.0,0.39689]
[1730943828494,0.13224102,75589.0,75588.0,0.39689]
[1730943828727,1.63224102,75589.0,75588.0,0.39689]
[1730943829396,1.67339831,75589.0,75588.0,0.39689]
[1730943830699,1.77839831,75589.0,75588.0,0.39689]
[1730943831103,1.77839831,75589.0,75588.0,0.397726]
[1730943833501,1.80261862,75589.0,75588.0,0.397726]
[1730943834422,2.34871862,75589.0,75588.0,0.37344986]
[1730943834670,2.30261862,75589.0,75588.0,0.37344986]
[1730943836735,2.30261862,75589.0,75588.0,0.32527308]
[1730943837064,2.30261862,75589.0,75588.0,0.31541956]
[1730943837199,0.005,75562.0,75554.0,0.0108705]
[1730943837444,0.005,75560.0,75554.0,0.0108705]
[1730943837683,0.04123612,75559.0,75554.0,0.0108705]
[1730943837904,0.005,75560.0,75554.0,0.0108705]
[1730943837905,0.01979279,75558.0,75554.0,0.0108705]
[1730943838138,1.53216328,75557.0,75554.0,0.0108705]
[1730943838375,0.03216328,75556.0,75554.0,0.0108705]
[1730943838589,0.01979279,75555.0,75554.0,0.0108705]
[1730943838800,0.01237049,75555.0,75554.0,0.0108705]
[1730943839981,0.03214827,75555.0,75554.0,0.0108705]
[1730943840898,0.03214827,75555.0,75554.0,0.02070444]
[1730943841320,0.03214827,75555.0,75554.0,0.0108705]
[1730943841956,1.53214827,75555.0,75554.0,0.0108705]
[1730943843039,1.53214827,75555.0,75554.0,0.02020755]
[1730943843274,1.53214827,75555.0,75554.0,0.0117065]
[1730943844193,0.03214827,75555.0,75554.0,0.0217065]
[1730943845394,0.03214827,75555.0,75554.0,0.0117065]
[1730943846080,1.53214827,75555.0,75554.0,0.0117065]
[1730943846545,1.53214827,75555.0,75554.0,0.0017065]
[1730943847513,2.16438929,75555.0,75554.0,0.0017065]
[1730943847738,2.16938929,75555.0,75554.0,0.0017065]
[1730943848424,2.26938929,75555.0,75554.0,0.0017065]
[1730943849102,2.23724102,75555.0,75554.0,0.0017065]
[1730943849328,2.26934621,75555.0,75554.0,0.0017065]
[1730943849784,2.29295746,75555.0,75554.0,0.0017065]
[1730943850028,2.29295746,75555.0,75525.0,0.1978931]
[1730943850029,0.00064598,75536.0,75525.0,0.1978931]
[1730943850255,0.16434621,75535.0,75531.0,0.1978931]
[1730943850495,0.16434621,75535.0,75524.0,0.001498]
[1730943850496,0.00064598,75534.0,75524.0,0.001498]
[1730943850718,0.16497992,75533.0,75524.0,0.001498]
[1730943850995,1.53209292,75532.0,75524.0,0.001498]
[1730943851229,0.16433394,75531.0,75524.0,0.001498]
[1730943851460,0.01234815,75530.0,75524.0,0.001498]
[1730943851701,0.16432377,75529.0,75524.0,0.001498]
[1730943851929,1.53208275,75528.0,75524.0,0.001498]
[1730943852170,0.16697132,75527.0,75524.0,0.001498]
[1730943852416,0.01299413,75526.0,75524.0,0.001498]
[1730943852663,0.15525586,75525.0,75524.0,0.001498]
[1730943852876,0.1478827,75525.0,75524.0,0.001498]
[1730943853164,2.15758543,75525.0,75524.0,0.001498]
[1730943853400,2.15758543,75525.0,75508.0,0.00591862]
[1730943853401,0.5,75517.0,75508.0,0.00591862]
[1730943853639,1.65493788,75525.0,75508.0,0.00591862]
[1730943853640,0.14456828,75516.0,75508.0,0.00591862]
[1730943853883,0.01232726,75515.0,75509.0,0.16912937]
[1730943854125,0.21760086,75524.0,75509.0,0.16912937]
[1730943854126,0.01232726,75514.0,75510.0,0.005]
[1730943854366,0.01232726,75513.0,75510.0,0.005]
[1730943854603,0.22024841,75524.0,75510.0,0.005]
[1730943854860,0.1978931,75516.0,75510.0,0.005]
[1730943855107,0.22024841,75524.0,75508.0,0.00591862]
[1730943855108,0.1445494,75515.0,75508.0,0.00591862]
[1730943855339,0.1978931,75514.0,75508.0,0.00591862]
[1730943855580,0.13224102,75513.0,75508.0,0.00591862]
[1730943856553,0.20054065,75512.0,75508.0,0.00591862]
[1730943856783,0.13224102,75511.0,75508.0,0.00591862]
[1730943857016,1.50264755,75510.0,75508.0,0.00591862]
[1730943857252,0.6642155,75509.0,75508.0,0.00591862]
[1730943857465,0.7692155,75509.0,75508.0,0.00591862]
[1730943858119,1.6642155,75509.0,75508.0,0.00591862]
[1730943859251,1.90145827,75509.0,75508.0,0.00591862]
[1730943859465,1.7692155,75509.0,75508.0,0.00591862]
[1730943859660,1.73724102,75509.0,75508.0,0.00591862]
[1730943860411,1.77745535,75509.0,75508.0,0.00591862]
[1730943860660,1.76917961,75509.0,75508.0,0.00591862]
[1730943860872,1.79281415,75509.0,75508.0,0.00591862]
[1730943861083,1.80108976,75509.0,75508.0,0.00591862]
[1730943861292,1.79281415,75509.0,75508.0,0.00591862]
[1730943862172,1.80108986,75509.0,75508.0,0.00591862]
[1730943863770,1.79608986,75509.0,75508.0,0.00591862]
[1730943863989,1.80109365,75509.0,75508.0,0.00591862]
[1730943866165,1.67245911,75509.0,75508.0,0.00591862]
[1730943866397,0.04021809,75509.0,75508.0,0.00591862]
[1730943866619,0.03194237,75509.0,75508.0,0.00675462]
[1730943866855,0.03194237,75509.0,75508.0,0.03211817]
[1730943867069,0.03194237,75509.0,75508.0,0.03711817]
[1730943867526,0.03194237,75509.0,75508.0,0.01175462]
[1730943867753,0.03194237,75509.0,75508.0,0.00675462]
[1730943869419,0.04021687,75509.0,75508.0,0.00675462]
[1730943869856,0.17245789,75509.0,75508.0,0.00675462]
[1730943870107,0.19293377,75509.0,75508.0,0.00675462]
[1730943870376,0.19293377,75509.0,75508.0,0.22193554]
[1730943870377,0.04021687,75509.0,75508.0,0.22193554]
[1730943870607,0.04021687,75509.0,75508.0,0.30133554]
[1730943870608,0.03198736,75509.0,75508.0,0.30133554]
[1730943871094,0.02885649,75509.0,75508.0,0.28403393]
[1730943871299,0.02885649,75509.0,75508.0,0.08615462]
[1730943871510,0.02885649,75509.0,75508.0,0.00675462]
[1730943872354,0.03713081,75509.0,75508.0,0.00675462]
[1730943873662,1.5,75514.0,75508.0,0.00675462]
[1730943873916,0.019705,75509.0,75508.0,0.00675462]
[1730943874145,0.14051556,75509.0,75508.0,0.00675462]
[1730943874353,0.14879028,75509.0,75508.0,0.00675462]
[1730943875262,0.1684957,75509.0,75508.0,0.00675462]
[1730943877029,0.17114325,75509.0,75508.0,0.00675462]
[1730943877452,1.67114325,75509.0,75508.0,0.00675462]
[1730943877656,1.6684957,75509.0,75508.0,0.00675462]
[1730943878103,1.7734957,75509.0,75508.0,0.00675462]
[1730943879526,1.7734957,75509.0,75484.0,0.01]
[1730943879527,0.005,75503.0,75484.0,0.01]
[1730943879529,0.005,75499.0,75482.0,0.1978931]
[1730943879739,0.0206122,75483.0,75482.0,0.1978931]
[1730943879950,0.0206122,75483.0,75478.0,0.001498]
[1730943879951,0.02798014,75483.0,75478.0,0.001498]
[1730943880162,0.02061401,75480.0,75478.0,0.001498]
[1730943880361,1.52798014,75479.0,75478.0,0.001498]
[1730943880563,1.52807218,75479.0,75478.0,0.001498]
[1730943881017,1.52807218,75479.0,75471.0,0.0779]
[1730943881018,1.52807218,75479.0,75471.0,0.001498]
[1730943881215,1.52807218,75479.0,75472.0,0.005]
[1730943881216,0.0206203,75473.0,75472.0,0.005]
[1730943881425,0.02807218,75473.0,75472.0,0.02229789]
[1730943881686,0.02807218,75473.0,75459.0,0.02431594]
[1730943881687,0.005,75456.0,75443.0,0.1978931]
[1730943881929,0.005,75442.0,75425.0,0.1978931]
[1730943882130,0.02807218,75441.0,75425.0,0.1978931]
[1730943882371,0.005,75442.0,75425.0,0.1978931]
[1730943882372,0.02807218,75440.0,75425.0,0.1978931]
[1730943882605,0.03006166,75439.0,75428.0,0.16648092]
[1730943882852,0.0404258,75438.0,75428.0,0.16648092]
[1730943883060,0.00198948,75439.0,75428.0,0.16648092]
[1730943883061,0.0404258,75437.0,75433.0,0.1978931]
[1730943883276,1.5404258,75436.0,75433.0,0.1978931]
[1730943883504,0.0404258,75435.0,75433.0,0.1978931]
[1730943883738,1.5,75436.0,75433.0,0.1978931]
[1730943883739,0.0404258,75434.0,75433.0,0.1978931]
[1730943884172,1.5,75436.0,75433.0,0.1978931]
[1730943884408,0.002,75430.0,75425.0,0.1978931]
[1730943884613,0.15285913,75435.0,75425.0,0.1978931]
[1730943884614,0.04035624,75429.0,75425.0,0.1978931]
[1730943884826,0.002,75426.0,75425.0,0.1978931]
[1730943885068,0.04235624,75426.0,75425.0,0.1978931]
[1730943885917,0.04035624,75426.0,75425.0,0.1978931]
[1730943886171,0.04035624,75426.0,75417.0,0.1978931]
[1730943886386,0.03207446,75425.0,75417.0,0.1978931]
[1730943886598,0.03207446,75424.0,75417.0,0.1978931]
[1730943886857,0.03207446,75423.0,75417.0,0.1978931]
[1730943887027,0.03207446,75422.0,75418.0,0.39777]
[1730943887259,0.01,75419.0,75418.0,0.39777]
[1730943887509,0.1692109,75419.0,75418.0,0.39777]
[1730943887913,1.67949561,75419.0,75418.0,0.39777]
[1730943888599,1.6642109,75419.0,75418.0,0.39777]
[1730943888811,0.03196988,75419.0,75418.0,0.39777]
[1730943888962,0.01229611,75419.0,75418.0,0.45420309]
[1730943889398,0.01961989,75436.0,75425.0,0.16648092]
[1730943889602,0.00398948,75439.0,75425.0,0.16648092]
[1730943889603,0.13224102,75435.0,75426.0,0.40039121]
[1730943889811,0.13224102,75435.0,75426.0,0.39774]
[1730943890260,0.13224102,75435.0,75427.0,0.1978931]
[1730943890475,0.00698948,75439.0,75427.0,0.1978931]
[1730943890476,0.00198948,75439.0,75432.0,0.16648092]
[1730943890685,0.00198948,75439.0,75438.0,0.16648092]
[1730943891141,0.002,75453.0,75438.0,0.16648092]
[1730943891142,0.0196135,75446.0,75438.0,0.56681147]
[1730943891363,0.002,75453.0,75450.0,0.16648092]
[1730943891540,0.002,75453.0,75451.0,0.0192986]
[1730943891712,0.002,75453.0,75451.0,0.41425809]
[1730943892684,1.505,75459.0,75452.0,0.20054358]
[1730943892947,0.002,75457.0,75452.0,0.00265048]
[1730943893153,0.002,75457.0,75453.0,0.3976]
[1730943893352,1.63224102,75459.0,75453.0,0.5954931]
[1730943893956,1.63224102,75459.0,75453.0,0.3976]
[1730943894178,1.63224102,75459.0,75454.0,0.05640809]
[1730943894433,0.002,75467.0,75458.0,0.16648092]
[1730943894866,0.002,75463.0,75459.0,0.39757]
[1730943895089,1.5,75467.0,75459.0,0.39757]
[1730943895090,0.01960554,75466.0,75459.0,0.39757]
[1730943895297,0.13224102,75465.0,75459.0,0.39757]
[1730943895500,0.01960784,75464.0,75459.0,0.39757]
[1730943895643,0.13224102,75465.0,75459.0,0.39757]
[1730943895859,0.005,75463.0,75459.0,0.39757]
[1730943896065,0.15184895,75462.0,75459.0,0.39757]
[1730943896295,0.01960793,75461.0,75459.0,0.39757]
[1730943896499,0.13224102,75460.0,75459.0,0.39757]
[1730943896924,0.13724102,75460.0,75459.0,0.39757]
[1730943897177,0.22434102,75460.0,75459.0,0.39757]
[1730943897375,0.87898857,75460.0,75459.0,0.39757]
[1730943897503,2.39594895,75460.0,75459.0,0.39757]
[1730943897709,2.39794895,75460.0,75459.0,0.39757]
[1730943898136,2.53019172,75460.0,75459.0,0.39757]
[1730943898566,0.005,75441.0,75439.0,0.1978931]
[1730943898805,0.13424102,75440.0,75439.0,0.1978931]
[1730943899018,0.13424102,75440.0,75427.0,0.1978931]
[1730943899019,0.005,75431.0,75427.0,0.1978931]
[1730943899150,0.13224102,75430.0,75427.0,0.1978931]
[1730943899573,0.13224102,75430.0,75407.0,0.33476291]
[1730943899574,1.5,75429.0,75407.0,0.33476291]
[1730943899798,1.5,75429.0,75419.0,0.1978931]
[1730943899799,0.005,75426.0,75419.0,0.1978931]
[1730943900018,0.13924102,75426.0,75419.0,0.1978931]
[1730943900439,0.64924102,75426.0,75393.0,0.2128931]
[1730943900668,0.64924102,75426.0,75394.0,0.0098029]
[1730943901295,0.14924102,75426.0,75418.0,0.1978931]
[1730943902146,0.13824102,75426.0,75418.0,0.1978931]
[1730943902349,0.00264755,75428.0,75418.0,0.1978931]
[1730943902350,0.005,75428.0,75424.0,0.25416291]
[1730943902620,0.003674,75426.0,75418.0,0.1978931]
[1730943903644,0.001674,75426.0,75418.0,0.1978931]
[1730943904534,0.001674,75426.0,75425.0,0.25499891]
[1730943904544,0.001674,75426.0,75425.0,0.27799891]
[1730943904752,0.002,75442.0,75425.0,0.3034988]
[1730943904977,0.002,75443.0,75425.0,0.3034988]
[1730943905196,1.5,75447.0,75426.0,0.1978931]
[1730943905428,1.63724102,75447.0,75426.0,0.1978931]
[1730943905717,1.5,75447.0,75434.0,0.1978931]
[1730943905931,1.5,75447.0,75435.0,0.00265079]
[1730943906370,0.002,75445.0,75435.0,0.00265079]
[1730943906815,1.5,75447.0,75435.0,0.00265079]
[1730943907111,1.5,75447.0,75444.0,0.1978931]
[1730943907393,0.00198935,75448.0,75445.0,0.04785626]
[1730943907609,0.00198935,75448.0,75442.0,0.009815]
[1730943907823,0.00198935,75448.0,75441.0,0.25416291]
[1730943908038,0.00198935,75448.0,75441.0,0.26397791]
[1730943908285,0.00198935,75448.0,75441.0,0.25416291]
[1730943908501,0.00198935,75448.0,75442.0,0.04716189]
[1730943908720,0.00198935,75448.0,75441.0,0.25416291]
[1730943908936,0.00198935,75448.0,75437.0,0.009815]
[1730943909166,0.002,75445.0,75435.0,0.009815]
[1730943909382,0.002,75439.0,75438.0,0.39765]
[1730943909595,0.01233876,75439.0,75438.0,0.39765]
[1730943910037,0.01233876,75439.0,75438.0,0.45720431]
[1730943910277,1.51233876,75439.0,75438.0,0.45720431]
[1730943910527,1.51233876,75439.0,75438.0,0.39765]
[1730943910747,1.5,75439.0,75438.0,0.39765]
[1730943911201,0.00198935,75448.0,75438.0,0.39765]
[1730943911409,0.14959891,75447.0,75438.0,0.39765]
[1730943911625,1.5,75439.0,75438.0,0.39765]
[1730943911834,1.53213077,75439.0,75438.0,0.39765]
[1730943913206,1.53413077,75439.0,75438.0,0.39765]
[1730943913725,1.53913077,75439.0,75438.0,0.39765]
[1730943913952,1.54413077,75439.0,75438.0,0.39765]
[1730943914162,1.54913077,75439.0,75438.0,0.39765]
[1730943914388,2.14913077,75439.0,75438.0,0.39765]
[1730943914823,2.14913077,75439.0,75438.0,0.38269]
[1730943915026,2.16364744,75439.0,75438.0,0.38269]
[1730943915237,2.19578552,75439.0,75438.0,0.38269]
[1730943915503,2.19578552,75439.0,75425.0,0.000836]
[1730943915504,0.517,75426.0,75425.0,0.000836]
[1730943915712,0.76160182,75426.0,75425.0,0.1987291]
[1730943915935,0.76160182,75426.0,75417.0,0.1978931]
[1730943915936,0.612,75418.0,75417.0,0.1978931]
[1730943916127,0.75660182,75418.0,75417.0,0.1978931]
[1730943916335,2.25660182,75418.0,75417.0,0.1978931]
[1730943916573,0.017,75414.0,75413.0,8e-05]
[1730943916829,0.28136545,75414.0,75413.0,8e-05]
[1730943917087,0.33185116,75414.0,75413.0,8e-05]
[1730943917301,1.88869882,75414.0,75413.0,8e-05]
[1730943917507,1.91169882,75414.0,75413.0,8e-05]
[1730943917742,1.91169882,75414.0,75402.0,0.2087636]
[1730943917743,0.617,75403.0,75402.0,0.2087636]
[1730943917967,0.78136545,75403.0,75402.0,0.2087636]
[1730943918382,0.78136545,75403.0,75402.0,0.0108705]
[1730943918626,2.29465359,75403.0,75402.0,0.0108705]
[1730943919078,2.28965359,75403.0,75402.0,0.0108705]
[1730943919529,2.28136545,75403.0,75402.0,0.0118705]
[1730943919866,1.53212443,75403.0,75402.0,0.0118705]
[1730943920080,1.53412443,75403.0,75402.0,0.0108705]
[1730943920288,1.55180766,75403.0,75402.0,0.0108705]
[1730943920510,1.53203878,75403.0,75402.0,0.0118705]
[1730943920723,1.54032525,75403.0,75402.0,0.0118705]
[1730943921152,1.67956627,75403.0,75402.0,0.0118705]
[1730943921391,0.17256627,75403.0,75402.0,0.0118705]
[1730943921830,1.67256627,75403.0,75402.0,0.0118705]
[1730943922037,1.68456627,75403.0,75402.0,0.0118705]